bitfinex/quotes_ETHUSD_20260131
["timestamp","ask_amount","ask_price","bid_price","bid_amount"]
[1769876051743,0.831,2521.9,2520.3,12.62373947]
[1769876052740,0.99127676,2522.0,2520.4,0.01571462]
[1769876052942,0.99127676,2522.0,2520.1,3.98376979]
[1769876052943,2.02016714,2522.0,2520.5,12.62483947]
[1769876053241,1.82227676,2522.0,2520.6,12.62373947]
[1769876053427,1.82227676,2522.0,2520.7,13.61552746]
[1769876053623,0.99127676,2522.0,2520.7,13.61552746]
[1769876053833,0.99127676,2522.0,2520.8,12.62373947]
[1769876054749,0.99127676,2522.0,2520.5,0.0011]
[1769876054750,0.99127676,2522.0,2520.5,0.99293852]
[1769876055047,0.99127676,2522.0,2520.5,0.0011]
[1769876055349,0.99127676,2522.0,2520.5,0.99296395]
[1769876055920,0.99127676,2522.0,2520.5,0.0011]
[1769876056124,0.99119816,2522.2,2520.7,12.62373947]
[1769876056334,0.99119816,2522.2,2520.8,0.01571462]
[1769876056546,0.99119816,2522.2,2520.9,12.62373947]
[1769876056742,0.99119816,2522.2,2520.5,12.62483947]
[1769876057221,14.54994104,2522.2,2520.5,12.62483947]
[1769876057439,1.93457337,2522.1,2520.5,12.62483947]
[1769876057650,1.93457337,2522.1,2520.5,0.0011]
[1769876057651,14.87090023,2522.1,2520.5,0.0011]
[1769876057838,0.99127676,2522.0,2520.5,0.0011]
[1769876058545,0.99127676,2522.0,2520.5,12.62483947]
[1769876058834,0.831,2521.9,2520.5,12.62483947]
[1769876059059,0.99127676,2522.0,2520.5,12.62483947]
[1769876059230,1.82227676,2522.0,2520.5,12.62483947]
[1769876060040,1.82227676,2522.0,2520.6,0.99182734]
[1769876060239,0.99127676,2522.0,2520.6,13.61556681]
[1769876060454,0.99127676,2522.0,2520.8,12.62373947]
[1769876061853,0.831,2522.4,2520.8,12.62373947]
[1769876062059,16.90061298,2522.7,2520.9,0.99170931]
[1769876062243,3.96428612,2522.7,2520.9,13.6311634]
[1769876062444,0.831,2522.6,2521.1,12.63945409]
[1769876062760,0.9910017,2522.7,2521.4,12.62373947]
[1769876063058,0.9910017,2522.7,2521.6,12.62373947]
[1769876063770,0.99092314,2522.9,2521.6,12.62373947]
[1769876064141,0.001,2523.0,2521.7,0.99139469]
[1769876064344,0.001,2523.0,2521.7,28.11513416]
[1769876065756,0.001,2523.0,2521.8,12.62373947]
[1769876065953,0.001,2523.0,2521.8,12.63945409]
[1769876066142,0.001,2522.5,2521.1,12.63945409]
[1769876066346,0.001,2522.5,2521.3,0.99154877]
[1769876066568,0.001,2522.5,2521.2,0.99158499]
[1769876066968,0.001,2522.5,2521.1,12.62373947]
[1769876067146,0.001,2522.5,2521.3,3.96617134]
[1769876067347,0.001,2522.5,2521.4,0.99148506]
[1769876067675,0.001,2522.5,2521.1,12.62373947]
[1769876067676,0.001,2522.5,2521.5,13.11950511]
[1769876067974,0.001,2522.5,2521.6,0.99140487]
[1769876068374,0.001,2522.5,2521.6,13.61514434]
[1769876068587,0.001,2522.5,2521.6,13.63085896]
[1769876068884,0.001,2522.5,2521.6,13.61514434]
[1769876069458,0.001,2523.0,2521.9,12.62373947]
[1769876069758,0.001,2523.0,2522.1,12.62373947]
[1769876070165,0.001,2523.0,2522.2,13.61493763]
[1769876070461,0.001,2523.0,2522.3,12.62373947]
[1769876071790,0.001,2523.0,2522.4,14.5]
[1769876072165,1.27589721,2523.6,2522.5,0.99108027]
[1769876073093,1.27589721,2523.6,2522.4,14.5]
[1769876073494,14.21222407,2523.6,2521.9,0.99129527]
[1769876073682,14.21222407,2523.6,2521.8,0.9913248]
[1769876073683,12.93632686,2523.4,2521.8,0.9913248]
[1769876073883,12.93632686,2523.4,2521.6,13.47045409]
[1769876074062,2.383,2523.3,2522.0,0.9912531]
[1769876074267,2.383,2523.3,2521.9,0.99131607]
[1769876074268,0.99080532,2523.2,2521.9,0.99131607]
[1769876074487,2.52273801,2523.2,2521.8,14.5]
[1769876074701,15.45906487,2523.2,2521.8,14.5]
[1769876076196,15.45906487,2523.2,2521.8,15.49135185]
[1769876076371,13.92721072,2523.0,2521.5,0.99144863]
[1769876076765,13.92721072,2523.0,2521.4,0.99149]
[1769876077096,8.61016409,2523.1,2521.4,0.99149]
[1769876077097,3.25449646,2523.1,2521.7,0.99136896]
[1769876077265,3.25449646,2523.1,2521.6,0.9914136]
[1769876077597,14.37994266,2523.0,2521.5,0.9914514]
[1769876077777,14.37994266,2523.0,2521.6,0.99142935]
[1769876077965,14.38094266,2523.0,2521.6,0.99142935]
[1769876078286,0.99092314,2522.9,2521.5,3.96589314]
[1769876078497,3.32083196,2522.9,2521.5,3.96589314]
[1769876078702,0.831,2522.8,2521.5,3.98160776]
[1769876078920,0.831,2522.8,2521.5,16.605048]
[1769876079811,0.001,2523.0,2521.9,0.01571462]
[1769876079982,0.001,2523.0,2522.1,12.62344024]
[1769876080183,0.99188676,2523.0,2521.7,12.63915486]
[1769876080412,0.001,2523.0,2521.8,0.99135538]
[1769876080715,0.001,2523.0,2521.8,13.63051024]
[1769876082241,0.001,2523.0,2521.9,13.0339532]
[1769876082516,0.001,2523.0,2522.0,0.99127676]
[1769876082714,0.001,2523.0,2522.0,14.02522996]
[1769876082917,0.52383583,2523.5,2522.0,14.02522996]
[1769876082918,1.27588445,2523.6,2522.4,13.0339532]
[1769876083081,1.27588445,2523.6,2522.4,13.01823858]
[1769876083513,1.27588445,2523.6,2522.4,27.51823858]
[1769876084125,1.27588445,2523.6,2522.4,14.5]
[1769876084433,0.28523363,2523.6,2522.7,13.01823858]
[1769876084740,0.28523363,2523.6,2522.7,13.0339532]
[1769876084931,0.99035612,2524.4,2523.0,13.0339532]
[1769876086134,0.99132042,2524.5,2523.0,13.0339532]
[1769876086505,0.99132042,2524.5,2523.2,13.01823858]
[1769876086709,0.001,2524.5,2523.4,13.01823858]
[1769876087040,0.001,2524.5,2523.6,13.01823858]
[1769876087634,0.001,2524.5,2523.7,13.0339532]
[1769876087822,0.001,2524.5,2523.8,14.5]
[1769876089227,0.001,2524.5,2523.9,0.99053052]
[1769876089425,0.001,2524.5,2523.8,14.5]
[1769876089616,0.001,2524.5,2523.7,0.99060555]
[1769876089932,0.001,2524.2,2523.7,0.99060555]
[1769876090130,0.001,2524.2,2523.7,1.48593037]
[1769876091512,0.001,2524.2,2523.7,0.49532482]
[1769876092543,0.001,2524.2,2523.7,1.48592494]
[1769876093142,0.001,2524.2,2523.7,0.49532482]
[1769876093356,0.001,2524.2,2523.7,0.990603]
[1769876093555,0.001,2524.2,2523.3,3.96290718]
[1769876093872,0.001,2524.2,2522.5,0.89698652]
[1769876093873,13.86805366,2523.6,2522.5,0.89698652]
[1769876094029,13.86805366,2523.3,2522.5,0.89698652]
[1769876094230,1.38680537,2523.2,2522.5,0.89698652]
[1769876094450,0.831,2523.1,2522.5,0.89698652]
[1769876095655,0.99088386,2523.0,2522.0,0.0011]
[1769876096746,0.001,2524.5,2523.0,14.00912244]
[1769876097059,0.78463009,2524.2,2522.9,0.01571462]
[1769876097233,0.78463009,2524.2,2523.0,14.5]
[1769876097639,0.99033433,2524.4,2523.1,0.99084459]
[1769876098158,13.86805366,2524.3,2522.9,0.99089482]
[1769876098363,1.4858388,2524.2,2522.9,15.49089482]
[1769876098732,1.4858388,2524.2,2523.0,0.99088095]
[1769876098945,0.831,2524.1,2523.0,0.99088095]
[1769876099141,2.383,2524.0,2523.0,0.99088095]
[1769876099368,0.831,2524.1,2523.0,0.99088095]
[1769876099545,0.23168388,2524.0,2523.0,0.99088095]
[1769876100252,1.82153052,2523.9,2522.8,0.99096242]
[1769876100563,0.99053052,2523.9,2522.8,0.99096242]
[1769876100765,0.831,2523.8,2522.8,0.99096242]
[1769876101465,0.831,2523.7,2522.8,0.99096242]
[1769876101665,0.99047567,2524.1,2522.9,0.49548121]
[1769876101837,6.46172649,2524.9,2523.3,0.0011]
[1769876101838,0.99131525,2524.5,2523.3,0.0011]
[1769876102177,0.001,2524.0,2523.3,0.0011]
[1769876102934,13.86905366,2524.0,2523.3,0.0011]
[1769876103138,13.86805366,2523.8,2523.0,0.0011]
[1769876103538,13.86805366,2523.8,2522.5,0.99107511]
[1769876103736,13.86805366,2523.8,2522.2,13.01823858]
[1769876104065,0.001,2524.0,2523.1,0.99083111]
[1769876104249,0.831,2523.9,2522.8,16.98196777]
[1769876104439,0.001,2524.0,2522.8,13.01823858]
[1769876104780,0.831,2523.9,2522.8,13.01823858]
[1769876105379,0.001,2524.0,2522.8,13.01823858]
[1769876105541,0.831,2523.9,2522.8,13.01823858]
[1769876105742,0.001,2524.0,2522.8,13.01823858]
[1769876105940,0.831,2523.9,2522.7,15.4910017]
[1769876106250,0.99056977,2523.8,2522.5,0.99108027]
[1769876106974,0.99056977,2523.8,2522.6,14.5]
[1769876107263,14.68469239,2523.8,2522.4,0.99109256]
[1769876108148,14.68469239,2523.8,2522.1,0.9912205]
[1769876108349,14.68469239,2523.8,2522.0,0.0011]
[1769876108549,14.68469239,2523.8,2522.0,14.5011]
[1769876108756,15.64151641,2523.7,2522.0,14.5011]
[1769876109275,15.64151641,2523.7,2522.1,12.90952864]
[1769876109475,0.831,2523.6,2522.1,12.89381402]
[1769876109854,0.831,2523.5,2522.1,12.89381402]
[1769876110052,0.831,2523.4,2522.4,12.89381402]
[1769876110453,0.831,2523.4,2522.5,0.99108027]
[1769876111471,3.96255227,2523.7,2522.5,13.90060891]
[1769876111472,0.831,2523.7,2522.5,13.90060891]
[1769876111672,0.99151041,2524.0,2522.5,13.90060891]
[1769876111874,0.831,2523.8,2522.6,14.5]
[1769876112357,0.99060902,2523.7,2522.7,0.9910017]
[1769876112761,0.831,2523.8,2522.7,0.9910017]
[1769876112956,0.831,2523.7,2522.7,0.9910017]
[1769876113363,0.831,2523.6,2522.7,0.9910017]
[1769876113750,0.831,2523.6,2522.6,15.49101473]
[1769876113965,0.831,2523.6,2522.0,12.89491402]
[1769876114170,14.52512262,2523.6,2522.5,0.99107843]
[1769876114488,0.99068753,2523.5,2522.2,14.5]
[1769876114691,0.99068753,2523.5,2522.9,0.0011]
[1769876114857,3.33479166,2523.5,2522.9,0.0011]
[1769876117560,3.96248103,2523.7,2522.9,0.0011]
[1769876117561,0.831,2523.7,2522.9,0.0011]
[1769876118176,0.99151933,2524.0,2522.9,0.0011]
[1769876118381,0.831,2523.9,2522.9,0.0011]
[1769876119482,0.99056977,2523.8,2522.9,0.0011]
[1769876119882,1.56904055,2523.8,2522.9,0.0011]
[1769876120084,0.57847078,2523.8,2522.9,0.0011]
[1769876120387,0.831,2523.7,2522.9,0.0011]
[1769876120984,0.99055663,2523.9,2522.9,0.0011]
[1769876121187,0.001,2524.0,2522.9,12.89491402]
[1769876121501,0.832,2524.0,2522.9,12.89491402]
[1769876121657,0.832,2524.0,2523.0,0.99088386]
[1769876121858,0.001,2524.0,2523.0,0.99088386]
[1769876122057,0.831,2523.9,2523.0,0.99088386]
[1769876122790,14.52512262,2523.9,2522.9,0.0011]
[1769876122964,15.48408406,2523.8,2522.9,0.0011]
[1769876124164,1.82160902,2523.7,2522.9,0.0011]
[1769876125004,0.831,2523.6,2522.9,0.0011]
[1769876125700,3.214,2523.5,2522.9,0.0011]
[1769876126108,0.831,2523.5,2522.9,0.0011]
[1769876126308,1.82172597,2523.5,2522.9,0.0011]
[1769876126467,3.76957319,2523.5,2522.9,0.0011]
[1769876126665,3.76957319,2523.5,2523.1,0.0011]
[1769876126967,0.831,2523.4,2523.1,0.0011]
[1769876127165,0.831,2523.3,2523.1,0.0011]
[1769876127702,0.99067125,2523.6,2523.1,0.0011]
[1769876127901,0.831,2523.5,2523.1,0.0011]
[1769876128475,6.34,2523.8,2523.1,0.0011]
[1769876128693,0.831,2523.7,2523.1,0.0011]
[1769876129908,7.33057126,2523.8,2523.1,0.0011]
[1769876130109,0.831,2523.7,2523.1,0.0011]
[1769876130705,0.831,2523.6,2523.1,0.0011]
[1769876132995,0.831,2523.5,2523.1,0.0011]
[1769876134513,0.73357016,2523.7,2523.1,0.0011]
[1769876134830,0.831,2523.6,2523.1,0.0011]
[1769876135314,0.99064828,2523.6,2523.1,0.0011]
[1769876135495,0.831,2523.5,2523.1,0.0011]
[1769876136703,1.48276555,2523.5,2523.1,0.0011]
[1769876136904,1.48276555,2523.5,2522.9,0.0011]
[1769876137112,1.48276555,2523.5,2522.6,0.0011]
[1769876137113,16.16403573,2523.3,2522.6,0.0011]
[1769876137497,0.99080532,2523.2,2522.6,0.0011]
[1769876137706,2.11180624,2523.1,2522.6,0.0011]
[1769876139109,2.11180624,2523.1,2522.9,0.0011]
[1769876139419,0.99088386,2523.0,2522.9,0.0011]
[1769876140310,0.99088386,2523.0,2522.6,0.0011]
[1769876140503,0.831,2522.9,2522.6,0.0011]
[1769876141723,0.99096242,2522.8,2522.6,0.0011]
[1769876142025,0.99096242,2522.8,2522.0,0.0011]
[1769876142026,3.37396242,2522.8,2522.0,0.0011]
[1769876142396,0.831,2522.7,2522.0,0.0011]
[1769876143796,0.99104098,2522.6,2522.0,0.0011]
[1769876143994,1.79656241,2522.6,2522.0,0.0011]
[1769876145416,0.831,2522.5,2522.0,0.0011]
[1769876146299,0.99068753,2523.5,2522.0,13.07920692]
[1769876146518,0.831,2523.4,2522.2,13.07810692]
[1769876146825,0.831,2523.4,2522.4,13.07810692]
[1769876147526,0.99053052,2523.9,2522.4,13.07810692]
[1769876147730,14.04402843,2523.8,2522.4,13.07810692]
[1769876147898,14.04402843,2523.8,2522.1,13.07810692]
[1769876148617,14.20363745,2523.7,2522.2,0.99119816]
[1769876148812,1.89970735,2523.6,2522.2,14.0850197]
[1769876149596,0.831,2523.5,2522.2,14.06930508]
[1769876150611,0.831,2523.5,2522.0,0.0011]
[1769876150612,13.21302843,2523.0,2522.0,0.0011]
[1769876150927,13.21302843,2522.8,2522.0,0.0011]
[1769876151294,15.59602843,2522.8,2522.0,0.0011]
[1769876151508,15.59602843,2522.8,2521.6,0.0011]
[1769876151699,13.21302843,2522.6,2521.6,0.0011]
[1769876152133,0.831,2522.5,2521.6,0.0011]
[1769876153030,0.99111956,2522.4,2521.6,0.0011]
[1769876154346,14.20414799,2522.4,2521.6,0.0011]
[1769876155547,0.99111956,2522.4,2521.6,0.0011]
[1769876155760,0.57865978,2522.3,2521.6,0.0011]
[1769876157846,0.99119816,2522.2,2521.6,0.0011]
[1769876159362,0.99119816,2522.2,2521.0,14.06975709]
[1769876159672,14.20422659,2522.2,2520.9,0.99278598]
[1769876159844,1.8747679,2522.1,2520.9,0.99278598]
[1769876160562,15.08779633,2522.1,2520.7,0.0011]
[1769876160735,13.21302843,2521.5,2520.5,0.0011]
[1769876160938,13.21302843,2521.3,2520.5,0.0011]
[1769876161146,1.40440284,2521.2,2520.5,0.0011]
[1769876161367,14.61743127,2521.2,2519.1,13.07810692]
[1769876161572,14.61743127,2521.2,2518.8,0.99250754]
[1769876161573,13.21302843,2520.4,2518.8,0.99250754]
[1769876161741,2.383,2520.6,2518.8,0.99250754]
[1769876161742,0.99198476,2520.2,2518.8,0.99253612]
[1769876161947,1.90039522,2520.1,2518.8,0.99253612]
[1769876162534,0.831,2520.0,2519.2,13.07920692]
[1769876162730,0.831,2519.9,2519.2,0.0011]
[1769876163631,0.99198476,2520.2,2519.2,0.0011]
[1769876163835,0.831,2519.8,2519.2,0.0011]
[1769876164573,0.831,2519.7,2519.2,0.0011]
[1769876165362,0.831,2519.8,2519.2,0.0011]
[1769876166563,0.99190604,2520.4,2519.2,0.0011]
[1769876166777,2.64825118,2520.3,2519.2,0.0011]
[1769876166938,0.831,2520.3,2519.2,0.0011]
[1769876167139,14.79872789,2520.3,2519.2,0.0011]
[1769876167961,13.96772789,2519.9,2519.2,0.0011]
[1769876168136,13.96772789,2519.9,2518.3,0.0011]
[1769876168336,13.96772789,2519.4,2518.3,0.0011]
[1769876168543,13.96772789,2519.2,2518.3,0.0011]
[1769876168864,0.831,2519.3,2517.0,13.98011783]
[1769876168865,13.96772789,2518.8,2517.0,13.98011783]
[1769876169069,0.01571462,2519.1,2517.7,0.99294492]
[1769876169070,1.39834425,2518.7,2517.7,0.99294492]
[1769876169250,13.96772789,2519.2,2517.5,17.95226103]
[1769876169251,0.831,2518.6,2517.8,0.99292623]
[1769876169433,0.831,2518.6,2517.8,1.48941936]
[1769876169637,0.831,2518.6,2517.8,0.49649313]
[1769876169833,0.831,2518.6,2517.5,0.99304346]
[1769876170061,0.99265435,2518.5,2517.2,0.99316701]
[1769876170250,0.57941929,2518.4,2517.2,0.99316701]
[1769876171036,1.8236314,2518.6,2517.2,14.97328484]
[1769876171245,1.8236314,2518.6,2517.3,13.98011783]
[1769876171460,0.832,2518.5,2517.3,13.98011783]
[1769876172066,0.99237853,2519.2,2517.6,13.98011783]
[1769876172267,1.32818927,2519.1,2517.8,13.98011783]
[1769876172485,0.832,2519.1,2517.8,13.98011783]
[1769876172770,13.98344251,2519.0,2517.3,0.99310238]
[1769876172977,13.98344251,2519.0,2517.0,13.98011783]
[1769876172978,13.96772789,2518.8,2517.1,0.99318414]
[1769876173267,13.96772789,2518.8,2517.0,3.9729834]
[1769876173268,13.98344251,2518.4,2516.8,0.99331216]
[1769876173443,13.96772789,2518.2,2516.9,1.01082692]
[1769876173768,13.96772789,2517.9,2516.9,0.0175426]
[1769876174142,13.96772789,2517.7,2516.1,0.99357662]
[1769876174341,13.96772789,2517.5,2515.3,13.98011783]
[1769876174547,13.96772789,2517.5,2514.9,3.97615501]
[1769876174548,13.96772789,2517.1,2514.9,3.97615501]
[1769876174778,0.01571462,2514.8,2511.3,28.38249197]
[1769876174940,0.01571462,2514.8,2511.3,0.01571462]
[1769876174941,13.96772789,2511.6,2511.3,0.01571462]
[1769876175141,1.39677279,2511.6,2510.0,0.11841429]
[1769876175441,1.98678669,2512.2,2510.0,0.11841429]
[1769876175442,0.01571462,2511.8,2510.1,0.99597068]
[1769876175760,0.01571462,2511.8,2509.1,0.9803719]
[1769876175761,0.01571462,2511.2,2509.1,0.9803719]
[1769876175959,13.96772789,2511.3,2509.1,0.9803719]
[1769876176143,0.99530217,2511.8,2509.7,13.98011783]
[1769876176540,0.99530217,2511.8,2509.5,0.2712976]
[1769876176541,13.96772789,2511.6,2509.5,0.2712976]
[1769876176794,0.832,2511.5,2509.5,0.00652649]
[1769876176941,1.13320817,2511.9,2510.5,13.98011783]
[1769876177142,0.20692817,2512.4,2511.0,13.98011783]
[1769876177597,0.20692817,2512.4,2510.3,0.01571462]
[1769876177598,1.98678669,2512.3,2510.8,0.01571462]
[1769876177876,1.98678669,2512.3,2510.8,13.98011783]
[1769876178175,1.98678669,2512.3,2511.1,14.99139822]
[1769876178374,1.78531537,2512.3,2511.2,1.49913982]
[1769876178707,1.78531537,2512.3,2510.5,0.01571462]
[1769876178708,1.78529167,2512.3,2510.5,0.01571462]
[1769876178856,13.96772789,2512.1,2509.6,13.98011783]
[1769876179043,13.96772789,2511.3,2509.5,0.00652649]
[1769876179364,0.19922198,2512.2,2509.7,14.5]
[1769876179365,13.96772789,2511.9,2509.7,14.5]
[1769876179742,13.96772789,2511.7,2509.7,14.5]
[1769876179961,1.39677279,2511.6,2509.8,1.45]
[1769876180150,0.99542106,2511.5,2509.8,1.45]
[1769876180444,14.96314895,2511.5,2509.5,0.00652649]
[1769876180665,13.96772789,2511.4,2509.5,0.00652649]
[1769876180971,1.39677279,2511.6,2509.8,0.99605613]
[1769876181147,1.39677279,2511.6,2509.9,0.01571462]
[1769876181148,0.99539946,2511.6,2509.9,0.01571462]
[1769876181668,0.99539946,2511.6,2510.0,14.5]
[1769876181842,0.2149366,2512.2,2510.3,0.01571462]
[1769876181843,0.99518331,2512.1,2510.3,0.01571462]
[1769876182045,0.19922198,2512.2,2510.6,0.9957779]
[1769876182369,0.99494567,2512.7,2510.6,13.98011783]
[1769876182571,13.96772789,2512.5,2510.1,1.45]
[1769876182877,13.96772789,2512.3,2510.2,1.54116968]
[1769876183360,13.96772789,2512.3,2510.3,0.01571462]
[1769876183562,1.39834425,2512.4,2510.5,1.01152823]
[1769876183876,3.97861848,2513.5,2510.5,1.01152823]
[1769876183877,14.96243604,2513.3,2510.5,1.01152823]
[1769876184078,14.96243604,2513.3,2510.7,1.01143076]
[1769876184302,14.96243604,2513.3,2510.8,14.5]
[1769876184598,0.1024,2512.9,2510.8,15.95]
[1769876184746,31.91141295,2513.2,2510.4,3.98340093]
[1769876184747,13.96772789,2512.7,2510.4,3.98340093]
[1769876184956,13.96772789,2512.7,2510.6,0.99577205]
[1769876185146,1.48017279,2512.6,2510.8,0.99569858]
[1769876185441,1.89569833,2513.2,2511.5,0.01571462]
[1769876185680,3.97814812,2513.8,2511.5,0.84971462]
[1769876185881,0.99439163,2514.1,2512.5,0.01571462]
[1769876186174,4.25350691,2514.6,2511.5,0.84971462]
[1769876186175,13.96772789,2514.2,2512.6,14.5]
[1769876186607,13.96772789,2516.3,2513.7,13.98011783]
[1769876186745,1.00919737,2516.4,2514.1,0.01571462]
[1769876186746,13.96772789,2516.1,2514.1,0.01571462]
[1769876186949,13.96772789,2515.9,2513.8,14.5]
[1769876187293,3.97440483,2515.8,2513.9,1.46571462]
[1769876187572,14.80172789,2516.0,2513.9,1.45]
[1769876187779,0.834,2516.0,2513.9,15.44583245]
[1769876187985,0.834,2516.0,2514.3,0.01571462]
[1769876188193,3.98964563,2516.6,2514.6,0.9941939]
[1769876188194,3.97393101,2516.6,2514.6,0.9941939]
[1769876188349,15.76346524,2516.5,2514.7,0.49866842]
[1769876188725,13.96772789,2516.0,2513.8,14.5]
[1769876188858,14.80172789,2515.9,2513.8,14.5]
[1769876189057,14.07012789,2515.7,2513.9,1.45]
[1769876189373,14.07012789,2515.7,2513.8,14.5]
[1769876189374,13.96772789,2515.5,2512.5,13.99583245]
[1769876189559,30.01571462,2515.6,2513.3,0.99468013]
[1769876189560,13.96772789,2515.3,2513.3,0.99468013]
[1769876189749,1.39834425,2515.2,2513.6,0.99458208]
[1769876189945,1.59985887,2515.8,2513.6,14.5]
[1769876189946,2.33145887,2515.8,2513.6,14.5]
[1769876190145,13.96772789,2515.5,2513.1,0.99477747]
[1769876190352,13.96772789,2515.3,2513.0,0.99481256]
[1769876190568,1.39834425,2515.2,2512.7,0.01571462]
[1769876190782,1.39834425,2515.2,2513.6,0.99458083]
[1769876191080,0.99375919,2515.7,2513.4,0.01571462]
[1769876191247,14.96148708,2515.7,2513.4,0.99463168]
[1769876191446,5.0,2515.5,2513.2,0.01571462]
[1769876191650,13.96772789,2515.4,2513.3,15.49470665]
[1769876191850,0.96216694,2515.7,2513.3,15.49470665]
[1769876191851,1.39677279,2515.3,2513.6,1.01028962]
[1769876192057,0.96216694,2515.7,2514.0,0.01571462]
[1769876192258,0.96216694,2515.7,2513.8,0.01571462]
[1769876192477,0.96216694,2515.7,2513.9,0.99445111]
[1769876192654,0.96216694,2515.7,2513.8,1.01021042]
[1769876192983,0.96216694,2515.7,2513.5,13.98011783]
[1769876192984,13.96772789,2515.4,2513.4,1.54947066]
[1769876193153,0.1024,2515.5,2512.9,1.01055443]
[1769876193154,13.96772789,2515.2,2512.9,1.01055443]
[1769876193356,14.07012789,2515.0,2512.5,0.99499611]
[1769876193589,14.07012789,2515.0,2512.3,3.99607702]
[1769876193590,13.96772789,2515.0,2512.8,0.01571462]
[1769876193890,14.90412789,2514.9,2512.7,1.01063688]
[1769876194086,14.80172789,2514.9,2512.6,13.98011783]
[1769876194251,14.80172789,2514.9,2512.5,0.01571462]
[1769876194252,14.96184273,2514.8,2512.7,0.99492914]
[1769876194448,0.1024,2514.7,2512.5,0.01571462]
[1769876194653,14.07012789,2514.5,2511.8,3.98117578]
[1769876194881,14.07012789,2514.5,2512.1,0.99516569]
[1769876195162,14.07012789,2514.5,2512.2,14.5]
[1769876195374,14.07012789,2514.5,2512.2,15.49513792]
[1769876195573,15.37631214,2514.4,2512.3,1.55108525]
[1769876195892,13.96772789,2513.8,2511.0,0.99561462]
[1769876196180,0.1024,2513.5,2511.2,1.0112448]
[1769876196495,13.96772789,2511.7,2510.0,0.0011]
[1769876196791,0.1024,2512.0,2510.2,0.99593103]
[1769876196960,13.50093625,2511.8,2510.0,0.0011]
[1769876197282,0.01571462,2511.4,2510.0,0.0011]
[1769876197983,12.66693625,2511.1,2510.0,0.0011]
[1769876198171,0.99565892,2510.9,2509.5,1e-08]
[1769876198352,0.834,2510.8,2509.5,1e-08]
[1769876198690,0.834,2510.8,2509.4,2.64118457]
[1769876198691,0.01571462,2510.4,2509.4,1e-08]
[1769876198902,0.01571462,2510.2,2509.4,1e-08]
[1769876199204,1.28555117,2510.4,2508.2,1e-08]
[1769876199205,13.95248742,2510.4,2508.2,1e-08]
[1769876199397,0.2077,2508.1,2507.0,2.66735537]
[1769876199564,12.66693625,2507.9,2505.5,0.01571462]
[1769876199769,2.28539362,2507.8,2506.0,0.9975883]
[1769876199986,0.2077,2508.1,2506.5,0.01571462]
[1769876200212,0.2077,2508.1,2506.9,0.01571462]
[1769876200373,3.98565767,2509.0,2507.0,0.99720781]
[1769876200698,0.207267,2509.1,2507.5,0.01571462]
[1769876200912,0.207267,2509.1,2507.7,0.01571462]
[1769876201072,0.207267,2509.1,2508.3,0.0011]
[1769876201400,3.98364645,2510.3,2508.3,0.0011]
[1769876201603,3.98364645,2510.3,2508.4,0.01571462]
[1769876202063,3.98364645,2510.3,2508.3,0.0011]
[1769876202268,14.4443191,2510.1,2508.3,0.0011]
[1769876202484,0.99597625,2510.1,2508.3,0.0011]
[1769876203568,0.49795434,2510.2,2508.6,0.01571462]
[1769876203774,0.99557962,2511.1,2509.0,0.01571462]
[1769876203971,0.99557962,2511.1,2509.1,0.01571462]
[1769876204174,0.5080164,2511.0,2509.2,14.5]
[1769876204377,13.44834285,2510.8,2508.4,0.01571462]
[1769876204593,13.44834285,2510.8,2508.5,1.01231734]
[1769876204800,1.44440018,2510.7,2508.5,15.49660159]
[1769876204998,43.44834285,2510.6,2508.5,14.5]
[1769876205177,13.44834285,2510.5,2508.5,14.5]
[1769876205372,13.44834285,2510.3,2508.3,0.0011]
[1769876205670,13.44834285,2510.8,2508.4,4.00229456]
[1769876205872,14.70631552,2510.8,2508.6,0.01571462]
[1769876206177,14.70631552,2510.8,2508.3,0.01681462]
[1769876206484,2.56593568,2510.7,2508.7,0.01571462]
[1769876206683,5.0,2510.6,2508.4,0.01571462]
[1769876206896,5.0,2510.6,2508.8,0.01571462]
[1769876207275,5.0,2510.6,2509.0,0.01571462]
[1769876207576,5.0,2510.6,2509.4,0.01571462]
[1769876207785,5.0,2510.6,2509.0,0.01571462]
[1769876207985,3.98239169,2511.1,2509.0,0.01571462]
[1769876207986,0.99538143,2511.6,2509.6,0.01571462]
[1769876208200,0.99538143,2511.6,2510.0,0.01571462]
[1769876208521,0.49767658,2511.5,2509.8,1.01178656]
[1769876209027,3.98152572,2511.8,2509.7,0.99610647]
[1769876209310,13.44834285,2511.6,2509.4,0.99623872]
[1769876209516,13.44834285,2511.6,2509.5,0.99620591]
[1769876209723,13.44834285,2511.6,2509.4,0.99622724]
[1769876210045,1.34483429,2511.5,2509.8,0.99607606]
[1769876210178,3.98152572,2511.8,2509.9,0.01571462]
[1769876210509,3.98114439,2512.0,2509.9,0.01571462]
[1769876210814,3.98114439,2512.0,2510.1,0.01571462]
[1769876210972,3.98114439,2512.0,2509.8,1.01179068]
[1769876211177,3.98114439,2512.0,2509.8,0.99607606]
[1769876211387,0.49763673,2511.9,2509.9,0.49961719]
[1769876211586,0.49763673,2511.9,2509.8,0.01571462]
[1769876212311,0.99530217,2511.8,2509.9,0.99605561]
[1769876212517,0.99530217,2511.8,2510.0,0.01571462]
[1769876213300,0.99530217,2511.8,2510.0,0.0011]
[1769876213500,0.01571462,2512.6,2510.1,0.01571462]
[1769876213708,0.99510408,2512.3,2510.8,0.01571462]
[1769876213926,0.58105204,2512.2,2510.6,0.01571462]
[1769876214126,13.44834285,2512.8,2510.8,0.01571462]
[1769876214337,3.97901533,2513.2,2511.1,0.99557962]
[1769876214562,3.97901533,2513.2,2511.5,0.01571462]
[1769876214850,3.97901533,2513.2,2511.2,0.01571462]
[1769876215012,0.49737631,2513.1,2511.2,0.51507589]
[1769876215215,0.49737631,2513.1,2511.4,0.01571462]
[1769876215618,0.99471528,2513.3,2511.2,14.23049844]
[1769876215916,0.99471528,2513.3,2511.5,0.01571462]
[1769876216124,14.44305813,2513.3,2511.2,0.49936127]
[1769876216342,14.44305813,2513.3,2511.1,1.01129424]
[1769876216549,14.44305813,2513.3,2511.5,0.01571462]
[1769876216842,6.11158646,2513.4,2511.5,0.01571462]
[1769876216843,3.12745043,2513.4,2511.7,0.01571462]
[1769876217042,3.83807873,2513.4,2511.5,0.01571462]
[1769876217243,13.44834285,2513.3,2511.1,1.01129424]
[1769876217440,13.44834285,2513.3,2511.5,0.01571462]